[Event "27th Sharjah International Rapid Chess-c"]
[Site "Sharjah"]
[Date "2022.04.07"]
[Round "5.1"]
[White "Sokolov, Ivan"]
[Black "Sindarov, Javokhir"]
[Result "0-1"]
[ECO "A56"]
[WhiteElo "2588"]
[BlackElo "2609"]
[Annotator "TA"]
[PlyCount "92"]
[EventDate "2022.04.07"]
[EventType "rapid"]
[EventCountry "UAE"]
[SourceTitle "playchess.com"]
[Source "ChessBase"]
[SourceQuality "1"]
[TimeControl "600+3"]

{[%evp 64,92,-14,-11,-14,-24,-9,-9,-9,-23,-22,-20,-18,-42,-35,-107,-111,-360,-418,-316,-389,-385,-358,-590,-637,-1290,-1194,-29977,-29977,-29975,-29976]} 1. d4 {[%emt 0:00:02]} Nf6 {[%emt 0:00:01]} 2. c4 {[%emt 0:00:01]} c5 {[%emt 0:00:01]} 3. d5 {[%emt 0:00:03]} g6 {[%emt 0:00:01]} 4. Nc3 {[%emt 0:00:03]} Bg7 {[%emt 0:00:01]} 5. e4 {[%emt 0:00:04]} d6 {[%emt 0:00:01]} 6. h3 {[%emt 0:00:08]} O-O {[%emt 0:00:03]} 7. Nf3 {[%emt 0:00:02]} e6 {[%emt 0:00:01]} 8. Bd3 {[%emt 0:00:05]} Nbd7 {[%emt 0:00:01]} 9. Bg5 {[%emt 0:00:07]} a6 {[%emt 0:00:53]} 10. a4 {[%emt 0:00:02]} b6 {[%emt 0:00:31]} 11. Qd2 {[%emt 0:00:08]} exd5 {[%emt 0:00:49]} 12. cxd5 {[%emt 0:00:05]} Qc7 {[%emt 0:00:04]} 13. O-O {[%emt 0:00:13]} Re8 {[%emt 0:00:09]} 14. Rfe1 {[%emt 0:00:10]} Ne5 {[%emt 0:00:07]} 15. Nxe5 {[%emt 0:00:05]} Rxe5 {[%emt 0:00:01]} 16. Bh6 {[%emt 0:00:31]} Bxh6 {[%emt 0:00:31]} 17. Qxh6 {[%emt 0:00:02]} c4 {[%emt 0:00:15]} 18. Bf1 {[%emt 0:00:16]} Bd7 {[%emt 0:00:15]} 19. Qe3 {[%emt 0:00:09]} Rc8 {[%emt 0:01:03]} 20. Qd4 {[%emt 0:01:35]} Nh5 {[%emt 0:00:06]} 21. g3 {[%emt 0:00:09]} Re7 {[%emt 0:00:30]} 22. Kh2 {[%emt 0:00:12]} Qc5 {[%emt 0:00:20]} 23. Qxc5 {[%emt 0:00:03]} Rxc5 {[%emt 0:00:01]} 24. Red1 {[%emt 0:00:17]} f5 {[%emt 0:00:29]} 25. Rd4 {[%emt 0:00:16]} b5 {[%emt 0:00:02]} 26. axb5 {[%emt 0:00:01]} axb5 {[%emt 0:00:01]} 27. Ra7 {[%emt 0:00:07]} Kf7 {[%emt 0:00:17]} 28. exf5 {[%emt 0:00:55]} gxf5 {[%emt 0:00:01]} 29. Nd1 {[%emt 0:00:04]} Bc8 {[%emt 0:00:44]} 30. Rxe7+ {[%emt 0:00:24]} Kxe7 {[%emt 0:00:01]} 31. Ne3 {[%emt 0:00:03]} Nf6 {[%emt 0:00:01]} 32. g4 {[%emt 0:00:08]} f4 {[%emt 0:00:17]} 33. Rxf4 {[%emt 0:00:30]} Nxd5 {[%emt 0:00:03]} 34. Re4+ $1 {[%emt 0:00:06]} Kf6 {[%emt 0:00:10]} 35. Nc2 {[%emt 0:00:05]} Nb6 {[%emt 0:00:26]} 36. f4 {[%emt 0:00:13]} Na4 {[%emt 0:00:10]} 37. Rd4 {[%emt 0:00:41]} Ke7 {[%emt 0:00:03]} 38. Re4+ {[%emt 0:00:08]} Kf7 {[%emt 0:00:45]} 39. Be2 {[%emt 0:00:21]} (39. Rd4 $15) 39... Nxb2 $17 {[%emt 0:00:05]} 40. g5 $2 {[%emt 0:00:01]} (40. Kg3 $17) 40... Bf5 $19 {[%emt 0:00:03]} 41. Bh5+ {[%emt 0:00:14]} Bg6 {[%emt 0:00:01]} 42. Bxg6+ {[%emt 0:00:12]} hxg6 {[%emt 0:00:01]} ({Not} 42... Kxg6 43. Kg3 $17) 43. h4 $2 {[%emt 0:00:06]} (43. Rd4 Ke6 44. Nb4) 43... Nd3 $19 {[%emt 0:00:05]} 44. Kg3 {[%emt 0:00:03]} b4 {[%emt 0:00:02]} 45. Rd4 {[%emt 0:00:32]} b3 {[%emt 0:00:02]} 46. Na3 {[%emt 0:00:01]} c3 0-1

[Event "27th Sharjah International Rapid Chess-c"]
[Site "Sharjah"]
[Date "2022.04.07"]
[Round "5.2"]
[White "Yakubboev, Nodirbek"]
[Black "Salem, A.R. Saleh"]
[Result "1/2-1/2"]
[ECO "D35"]
[WhiteElo "2630"]
[BlackElo "2690"]
[Annotator "TA"]
[PlyCount "78"]
[EventDate "2022.04.07"]
[EventType "rapid"]
[EventCountry "UAE"]
[SourceTitle "playchess.com"]
[Source "ChessBase"]
[SourceQuality "1"]
[TimeControl "600+3"]

{[%evp 46,78,-13,-24,8,12,14,6,0,0,13,0,0,0,0,0,0,0,0,0,0,-10,0,0,4,0,0,0,0,0,0,-711,-665,-29981,-488]} 1. c4 {[%emt 0:00:02]} e6 {[%emt 0:00:03]} 2. Nc3 {[%emt 0:00:03]} d5 {[%emt 0:00:02]} 3. d4 {[%emt 0:00:01]} Nf6 {[%emt 0:00:01]} 4. cxd5 {[%emt 0:00:02]} exd5 {[%emt 0:00:01]} 5. Bg5 {[%emt 0:00:01]} c6 {[%emt 0:00:03]} 6. e3 {[%emt 0:00:08]} h6 {[%emt 0:00:01]} 7. Bh4 {[%emt 0:00:02]} Be7 {[%emt 0:00:03]} 8. Bd3 {[%emt 0:00:04]} O-O {[%emt 0:00:02]} 9. Qc2 {[%emt 0:00:14]} Re8 {[%emt 0:00:02]} 10. Nge2 {[%emt 0:00:14]} Nbd7 {[%emt 0:00:11]} 11. O-O {[%emt 0:00:22]} Nh5 {[%emt 0:00:02]} 12. Bxe7 {[%emt 0:00:04]} Qxe7 {[%emt 0:00:07]} 13. Rab1 {[%emt 0:00:18]} Nb6 {[%emt 0:00:22]} 14. Kh1 {[%emt 0:00:45]} Bd7 {[%emt 0:00:09]} 15. Ng1 {[%emt 0:00:37]} Nf6 {[%emt 0:00:08]} 16. Rbe1 {[%emt 0:00:18]} Rad8 {[%emt 0:00:08]} 17. Nf3 {[%emt 0:00:13]} Nc8 {[%emt 0:01:30]} 18. Ne5 {[%emt 0:00:46]} Nd6 {[%emt 0:00:04]} 19. f4 {[%emt 0:00:02]} Nfe4 {[%emt 0:00:22]} 20. Nxe4 {[%emt 0:00:52]} dxe4 {[%emt 0:00:06]} 21. Be2 {[%emt 0:00:02]} Be6 {[%emt 0:00:08]} 22. b3 {[%emt 0:00:49]} f6 {[%emt 0:00:59]} 23. Nc4 {[%emt 0:00:32]} Nf5 {[%emt 0:01:25]} 24. Qxe4 {[%emt 0:01:01]} Qf7 {[%emt 0:00:02]} (24... Qb4 $5 {[%cal Rb7b5]}) 25. Bd3 {[%emt 0:01:01]} c5 {[%emt 0:00:01]} 26. Qf3 {[%emt 0:00:42]} b5 {[%emt 0:00:18]} 27. Na5 {[%emt 0:00:25]} cxd4 {[%emt 0:00:02]} 28. Nc6 {[%emt 0:00:19]} (28. Bxf5 {looks sharper.} Bxf5 29. Nc6 Rc8 30. Nxd4 Be4 31. Qf2) 28... Nxe3 {[%emt 0:00:12]} 29. Nxd8 {[%emt 0:00:25]} Rxd8 {[%emt 0:00:01]} 30. Rxe3 {[%emt 0:00:34]} dxe3 {[%emt 0:00:02]} 31. Qxe3 {[%emt 0:00:02]} Bd5 {[%emt 0:00:52]} 32. h3 {[%emt 0:00:35]} Bc6 {[%emt 0:00:33]} 33. Rf2 {[%emt 0:00:02]} Qd5 {[%emt 0:00:12]} 34. Bg6 {[%emt 0:00:02]} Qd4 {[%emt 0:01:33]} (34... a5 {seems wilder.} 35. Kh2 Qd4 36. Qe7 Qd6) 35. Qxd4 {[%emt 0:00:03]} (35. Qe6+ {is interesting.} Kh8 36. Qe7 Rc8 37. Qe1) 35... Rxd4 {[%emt 0:00:01]} 36. Kh2 {[%emt 0:00:01]} Kf8 {[%emt 0:00:04]} 37. Rc2 {[%emt 0:00:02]} Rd6 {[%emt 0:00:10]} 38. Be4 $2 {[%mdl 8192]} (38. Kg1 $11) 38... Bxe4 $19 39. Kh1 Bb7 (39... Bxc2 $142 40. Kg1 b4 41. Kf2 Ra6 42. Kg3 Rxa2 43. h4 Bxb3 44. Kf3 Bd5+ 45. Ke3 b3 46. g3 b2 47. Kd4 Ra5 48. h5 b1=Q 49. Kc3 Qb3+ 50. Kd4 Bh1 51. g4 Rd5#) 1/2-1/2

[Event "27th Sharjah International Rapid Chess-c"]
[Site "Sharjah"]
[Date "2022.04.07"]
[Round "5.3"]
[White "Al Qudaimi, Basheer"]
[Black "Arencibia Rodriguez, Walter"]
[Result "0-1"]
[ECO "C55"]
[WhiteElo "2423"]
[BlackElo "2486"]
[Annotator "TA"]
[PlyCount "56"]
[EventDate "2022.04.07"]
[EventType "rapid"]
[EventCountry "UAE"]
[SourceTitle "playchess.com"]
[Source "ChessBase"]
[SourceQuality "1"]
[TimeControl "600+3"]

{[%evp 15,56,-57,-52,-60,13,4,8,14,12,-86,0,-104,-100,-254,-147,-351,-318,-337,-320,-285,-192,-187,-187,-286,-267,-449,-429,-436,-416,-471,-479,-456,-439,-427,-446,-615,-610,-812,-806,-928,-907,-1081,-1034]} 1. e4 {[%emt 0:00:01]} e5 {[%emt 0:00:02]} 2. Nf3 {[%emt 0:00:02]} Nc6 {[%emt 0:00:01]} 3. Bc4 {[%emt 0:00:02]} Nf6 {[%emt 0:00:02]} 4. d3 {[%emt 0:00:05]} Be7 {[%emt 0:00:02]} 5. h3 {[%emt 0:00:35]} d6 {[%emt 0:00:09]} 6. c3 {[%emt 0:00:21]} O-O 7. Bb3 {[%emt 0:00:17]} Be6 {[%emt 0:00:52]} 8. c4 {[%emt 0:00:31]} Nd7 {[%emt 0:00:11]} 9. Nc3 {[%emt 0:00:21]} Nd4 {[%emt 0:00:15]} (9... f5 $15) 10. Nxd4 $11 {[%emt 0:00:06]} exd4 {[%emt 0:00:01]} 11. Ne2 {[%emt 0:00:02]} c5 {[%emt 0:00:09]} 12. g4 {[%emt 0:00:43] [#]} (12. O-O $11) 12... Bh4 {[%emt 0:00:00]} ({Better is} 12... b5 $1 $17 {White must now prevent ...bxc4.} 13. cxb5 Qa5+ 14. Kf1 Qxb5) 13. Bf4 {[%emt 0:00:36]} (13. Nf4 $11) 13... Ne5 $17 {[%emt 0:00:14]} 14. Kf1 $2 {[%emt 0:01:49]} (14. O-O $17 {was necessary.}) 14... Qf6 {[%emt 0:00:07]} (14... f5 $19 15. gxf5 Bxf5 16. exf5 Rxf5) 15. Kg2 $2 {[%emt 0:00:49]} (15. Rh2 $17) 15... g5 $19 {[%emt 0:00:14]} 16. Bg3 {[%emt 0:00:30]} Qf3+ {[%emt 0:00:01]} 17. Kg1 {[%emt 0:00:03]} Nxd3 {[%emt 0:00:20]} 18. Nxd4 {[%emt 0:01:19]} Qxe4 {[%emt 0:00:03]} 19. Bxh4 {[%emt 0:01:41]} (19. Bc2 $142 Bxc4 20. Nf5 Bxg3 21. Nxg3) 19... gxh4 $19 {[%emt 0:00:05]} ({But not} 19... Qxd4 $2 20. Bg3 $19) 20. Nb5 $2 {[%emt 0:00:42]} (20. Nf3 {is the only way for White.}) 20... Qxh1+ $19 {[%emt 0:00:05]} 21. Kxh1 {[%emt 0:00:01]} Nxf2+ {[%emt 0:00:01]} 22. Kg2 {[%emt 0:00:02]} Nxd1 {[%emt 0:00:01]} 23. Rxd1 {[%emt 0:00:00]} Rfd8 {[%emt 0:00:08]} 24. Kf3 {[%emt 0:00:19]} a6 {[%emt 0:00:06]} 25. Nxd6 {[%emt 0:00:13]} b5 {[%emt 0:00:14]} 26. Kf4 {[%emt 0:00:06]} bxc4 {[%emt 0:00:06]} 27. Ba4 {[%emt 0:00:02]} Rab8 {[%emt 0:00:05]} 28. Rd2 {[%emt 0:00:02]} Rb4 {[%emt 0:00:05]} 0-1

[Event "27th Sharjah International Rapid Chess-c"]
[Site "Sharjah"]
[Date "2022.04.07"]
[Round "5.4"]
[White "Naiditsch, Arkadij"]
[Black "Erdogdu, Mert"]
[Result "1-0"]
[ECO "B50"]
[WhiteElo "2648"]
[BlackElo "2407"]
[Annotator "TA"]
[PlyCount "81"]
[EventDate "2022.04.07"]
[EventType "rapid"]
[EventCountry "UAE"]
[SourceTitle "playchess.com"]
[Source "ChessBase"]
[SourceQuality "1"]
[TimeControl "600+3"]

{[%evp 35,81,10,25,41,39,34,132,116,112,109,235,229,225,205,330,324,451,452,753,382,385,388,406,387,415,414,489,475,454,353,431,395,463,468,460,447,444,394,623,540,574,567,1262,1253,1243,1159,29990,29991]} 1. e4 {[%emt 0:00:01]} c5 {[%emt 0:00:02]} 2. Nf3 {[%emt 0:00:02]} d6 {[%emt 0:00:01]} 3. Nc3 {[%emt 0:00:03]} Nf6 {[%emt 0:00:03]} 4. d4 {[%emt 0:00:02]} cxd4 {[%emt 0:00:02]} 5. Qxd4 {[%emt 0:00:02]} Nc6 {[%emt 0:00:03]} 6. Bb5 {[%emt 0:00:01]} Bd7 {[%emt 0:00:01]} 7. Bxc6 {[%emt 0:00:02]} Bxc6 {[%emt 0:00:02]} 8. Bg5 {[%emt 0:00:02]} e6 {[%emt 0:00:01]} 9. O-O-O {[%emt 0:00:02]} Be7 {[%emt 0:00:02]} 10. Qd3 {[%emt 0:00:02]} Qa5 {[%emt 0:00:02]} 11. h4 {[%emt 0:00:02]} h6 {[%emt 0:00:01]} 12. Bd2 {[%emt 0:00:03]} Qa6 {[%emt 0:00:02]} 13. Qxa6 {[%emt 0:00:03]} bxa6 {[%emt 0:00:01]} 14. Rhe1 {[%emt 0:00:08]} Ng4 {[%emt 0:00:18]} 15. Re2 {[%emt 0:00:20]} O-O {[%emt 0:00:08]} 16. Bf4 {[%emt 0:00:24]} Rfd8 {[%emt 0:00:28]} 17. Bg3 {[%emt 0:00:56]} Rac8 {[%emt 0:00:11]} 18. Red2 {[%emt 0:00:54]} Rc7 {[%emt 0:03:49]} 19. e5 {[%emt 0:01:55]} d5 {[%emt 0:00:17]} 20. h5 {[%emt 0:00:24]} Bc5 {[%emt 0:01:25]} (20... Rb7 $14) 21. Rd4 $16 {[%emt 0:00:47]} Bxd4 {[%emt 0:00:16]} 22. Rxd4 {[%emt 0:00:02]} Nxe5 {[%emt 0:00:36]} (22... f5 $2 23. exf6 Rf7 24. Rxg4 $18) (22... Nxf2 $16 23. Bxf2 Rdc8) 23. Bxe5 $18 {[%emt 0:00:14]} ({Not} 23. Nxe5 Bb5 $16) 23... Rb7 {[%emt 0:00:05] [#]} 24. Rg4 $1 {[%emt 0:00:08]} f5 {[%emt 0:00:02]} (24... f6 $142) 25. Rg6 $18 {[%emt 0:01:10]} Re8 {[%emt 0:01:41]} 26. Nd4 {[%emt 0:00:05]} Bd7 {[%emt 0:00:25]} (26... Rc8 $142 27. f4 Be8 28. Rxe6 Rd8 29. Nxf5 Bxh5 30. Rxa6 Rbd7) 27. Nce2 {[%emt 0:00:03]} Re7 {[%emt 0:00:04]} 28. Nf4 {[%emt 0:00:05]} Rb6 {[%emt 0:00:10]} 29. Rg3 {[%emt 0:00:10]} Rb7 {[%emt 0:00:16]} 30. Ra3 {[%emt 0:00:17]} Rb6 {[%emt 0:00:04]} 31. Rc3 {[%emt 0:00:03]} Rb7 {[%emt 0:00:01]} 32. Rc5 {[%emt 0:00:09]} Kf7 {[%emt 0:00:07]} 33. Nd3 {[%emt 0:00:43]} Re8 {[%emt 0:00:14]} 34. Ra5 {[%emt 0:00:07]} Rb6 {[%emt 0:00:21]} 35. Bc7 {[%emt 0:00:02]} Rb7 {[%emt 0:00:03]} 36. Bd6 {[%emt 0:00:02]} Bb5 {[%emt 0:00:03]} (36... Kg8 $142 37. Rxa6 Bc8) 37. Nxb5 {[%emt 0:00:21]} axb5 {[%emt 0:00:21]} 38. Nc5 {[%emt 0:00:01]} Rb6 {[%emt 0:00:02]} 39. Rxa7+ {[%emt 0:00:02]} Kg8 {[%emt 0:00:01]} 40. Be5 {[%emt 0:00:05]} Rc6 {[%emt 0:00:04]} 41. Rxg7+ {[%emt 0:00:06]} 1-0

[Event "27th Sharjah International Rapid Chess-c"]
[Site "Sharjah"]
[Date "2022.04.07"]
[Round "5.5"]
[White "El Adnani, Mokliss"]
[Black "Iordachescu, Viorel"]
[Result "1-0"]
[ECO "C28"]
[WhiteElo "2406"]
[BlackElo "2585"]
[Annotator "TA"]
[PlyCount "125"]
[EventDate "2022.04.07"]
[EventType "rapid"]
[EventCountry "UAE"]
[SourceTitle "playchess.com"]
[Source "ChessBase"]
[SourceQuality "1"]
[TimeControl "600+3"]

{[%evp 86,125,575,576,549,545,745,683,1872,1592,5057,4794,2252,2006,1891,844,781,729,1835,544,29999,1059,1030,1035,29975,910,910,892,817,860,1010,856,787,707,1035,975,978,976,878,837,909,731]} 1. e4 {[%emt 0:00:03]} e5 {[%emt 0:00:02]} 2. Nc3 {[%emt 0:00:03]} Nc6 {[%emt 0:00:04]} 3. Bc4 {[%emt 0:00:04]} Nf6 {[%emt 0:00:25]} 4. d3 {[%emt 0:00:13]} Na5 {[%emt 0:00:03]} 5. Nf3 {[%emt 0:00:28]} d6 {[%emt 0:00:17]} 6. h3 {[%emt 0:00:08]} Be7 {[%emt 0:00:05]} 7. O-O {[%emt 0:00:10]} O-O {[%emt 0:00:05]} 8. a4 {[%emt 0:00:16]} Nxc4 {[%emt 0:00:08]} 9. dxc4 {[%emt 0:00:02]} c6 {[%emt 0:00:05]} 10. a5 {[%emt 0:00:24]} Be6 {[%emt 0:00:05]} 11. b3 {[%emt 0:00:04]} h6 {[%emt 0:00:02]} 12. Qe2 {[%emt 0:00:12]} Qc7 {[%emt 0:00:04]} 13. Nh4 {[%emt 0:01:07]} Rfe8 {[%emt 0:00:30]} 14. Qf3 {[%emt 0:00:15]} Qd7 {[%emt 0:02:11]} 15. Rd1 {[%emt 0:00:25]} Rad8 {[%emt 0:00:07]} 16. Be3 {[%emt 0:00:42]} d5 {[%emt 0:01:36]} 17. Bxa7 {[%emt 0:00:32]} d4 {[%emt 0:00:19]} 18. Na4 {[%emt 0:00:19]} g6 {[%emt 0:00:32]} 19. Nc5 {[%emt 0:00:35]} Qc8 {[%emt 0:00:02]} 20. Bb6 {[%emt 0:00:14]} Rd6 {[%emt 0:00:06]} 21. Nd3 {[%emt 0:00:13]} Nh7 {[%emt 0:00:18]} 22. Bc5 {[%emt 0:00:10]} Ng5 {[%emt 0:00:07]} 23. Qe2 {[%emt 0:00:08]} Rd7 {[%emt 0:00:13]} 24. Bxe7 {[%emt 0:00:06]} Rdxe7 {[%emt 0:00:02]} 25. Nf3 {[%emt 0:00:08]} f6 {[%emt 0:00:13]} 26. Nxg5 {[%emt 0:00:13]} hxg5 {[%emt 0:00:01]} 27. Nc5 {[%emt 0:00:01]} Bf7 {[%emt 0:00:10]} 28. a6 {[%emt 0:00:33]} b6 {[%emt 0:00:01]} 29. Nd3 {[%emt 0:00:24]} c5 {[%emt 0:00:01]} 30. Ra4 {[%emt 0:00:32]} Ra7 {[%emt 0:00:03]} 31. Rda1 {[%emt 0:00:01]} Qc6 {[%emt 0:00:07]} 32. b4 {[%emt 0:00:21]} Kg7 {[%emt 0:01:43]} 33. bxc5 {[%emt 0:00:04]} bxc5 {[%emt 0:00:02]} 34. f3 {[%emt 0:00:04]} Rb8 {[%emt 0:00:06]} 35. Qe1 {[%emt 0:00:04]} Rb6 {[%emt 0:00:15]} 36. Qa5 {[%emt 0:00:13]} Bxc4 {[%emt 0:00:21]} 37. Qxc5 {[%emt 0:01:09]} Bb5 {[%emt 0:00:05]} 38. Rb4 {[%emt 0:00:41]} Qxc5 {[%emt 0:00:43]} 39. Nxc5 {[%emt 0:00:02]} Rbxa6 {[%emt 0:00:03]} 40. Nxa6 Rxa6 {[%emt 0:00:01]} 41. Rab1 {[%emt 0:00:11]} Ba4 {[%emt 0:00:09]} 42. Rb7+ {[%emt 0:00:05]} Kh6 {[%emt 0:00:00]} 43. Rc7 {[%emt 0:00:04]} g4 {[%emt 0:00:26]} 44. hxg4 {[%emt 0:00:02]} Kg5 {[%emt 0:00:00]} 45. Kf2 {[%emt 0:00:01]} Be8 {[%emt 0:00:08]} 46. Kg3 {[%emt 0:00:04]} Ra3 {[%emt 0:00:02]} 47. Rg7 {[%emt 0:00:06]} Rc3 {[%emt 0:00:03]} 48. Rh1 {[%emt 0:00:02]} f5 {[%emt 0:00:04]} 49. exf5 {[%emt 0:00:06]} Rxc2 {[%emt 0:00:01]} 50. Rg8 {[%emt 0:00:11]} (50. Rh8 $142 Kf6 51. Ra7) 50... Bf7 $18 {[%emt 0:00:01]} 51. Rf8 {[%emt 0:00:02]} Bd5 {[%emt 0:00:11]} 52. f6 {[%emt 0:00:08]} (52. Re1 $142) 52... e4 {[%emt 0:00:02]} 53. f7 {[%emt 0:00:04]} (53. f4# $142) 53... exf3 $18 {[%emt 0:00:01]} 54. gxf3 {[%emt 0:00:06]} Rc3 {[%emt 0:00:00] [#]} 55. Rf1 {[%emt 0:00:01]} (55. Rh5+ $142 $3 {[%mdl 512]} Kf6 56. Rxd5 Rc7 57. Rd6+ Kg7 58. Rg8+ Kxf7 59. Rgxg6 Ke7 60. Rc6) 55... Kf6 {[%emt 0:00:01]} 56. Rd8 {[%emt 0:00:04]} Bxf7 {[%emt 0:00:02]} 57. Rxd4 {[%emt 0:00:02]} Ke5 {[%emt 0:00:02]} 58. Re4+ {[%emt 0:00:01]} Kf6 {[%emt 0:00:01]} 59. Ra1 {[%emt 0:00:04]} Bd5 {[%emt 0:00:02]} 60. Rf4+ {[%emt 0:00:01]} Ke5 {[%emt 0:00:04]} 61. Re1+ {[%emt 0:00:06]} Kd6 {[%emt 0:00:05]} 62. Rf6+ {[%emt 0:00:02]} Kd7 {[%emt 0:00:00]} 63. Rf1 {[%emt 0:00:02]} 1-0

[Event "27th Sharjah International Rapid Chess-c"]
[Site "Sharjah"]
[Date "2022.04.07"]
[Round "5.6"]
[White "Adly, Ahmed"]
[Black "Stefanova, Antoaneta"]
[Result "1-0"]
[ECO "D02"]
[WhiteElo "2596"]
[BlackElo "2445"]
[Annotator "TA"]
[PlyCount "43"]
[EventDate "2022.04.07"]
[EventType "rapid"]
[EventCountry "UAE"]
[SourceTitle "playchess.com"]
[Source "ChessBase"]
[SourceQuality "1"]
[TimeControl "600+3"]

{[%evp 16,43,0,0,0,-12,-2,-9,0,-19,-36,-45,-31,-44,-27,0,0,0,0,0,0,0,0,0,0,-197,915,902,29993,781]} 1. d4 {[%emt 0:00:03]} d5 {[%emt 0:00:00]} 2. Nf3 {[%emt 0:00:01]} Nf6 {[%emt 0:00:02]} 3. g3 {[%emt 0:00:02]} Bf5 {[%emt 0:00:07]} 4. Bg2 {[%emt 0:00:01]} c6 {[%emt 0:00:02]} 5. O-O {[%emt 0:00:03]} h6 {[%emt 0:00:01]} 6. c4 {[%emt 0:00:02]} e6 {[%emt 0:00:01]} 7. Nc3 {[%emt 0:00:02]} Nbd7 {[%emt 0:00:05]} 8. Qb3 {[%emt 0:00:27] is now debated instead of 8.Nd2.} Qb6 {[%emt 0:00:09]} 9. c5 {[%emt 0:00:02]} Qa6 {[%emt 0:00:04] D11: Slav Defence: 3 Nf3 sidelines and 3...Nf6 4 e3 Bg4.} 10. Re1 {[%emt 0:00:04]} b6 {[%emt 0:00:02]} 11. cxb6 {[%emt 0:00:03]} axb6 {[%emt 0:00:14] The position is equal.} 12. Nh4 {[%emt 0:00:01]} Bh7 {[%emt 0:00:04]} 13. e4 {[%emt 0:00:01]} dxe4 {[%emt 0:00:04]} (13... Bxe4 {is interesting.} 14. Bxe4 dxe4 15. Nxe4 Nxe4 16. Rxe4 Be7) 14. Nxe4 {[%emt 0:00:02]} Nxe4 {[%emt 0:00:02]} 15. Bxe4 {[%emt 0:00:02]} Bxe4 {[%emt 0:00:02]} 16. Rxe4 {[%emt 0:00:02][%cal Oh4g6] [#] And now Ng6! would win.} Nf6 {[%emt 0:03:48]} 17. Rxe6+ {[%emt 0:00:06]} fxe6 {[%emt 0:00:01]} 18. Qxe6+ {[%emt 0:00:01]} Kd8 {[%emt 0:00:02] White must now prevent ...Qc8.} 19. Ng6 {[%emt 0:00:05][%cal Bh4g6,Bg6e5,Be5f7][%mdl 32]} Rg8 {[%emt 0:00:35] [#] Hoping for ...Qc8.} 20. Bf4 $146 {[%emt 0:00:01]} (20. Bxh6 $1 $11 {and White stays safe.} Qc8 21. Nxf8 Qxe6 22. Nxe6+ Kd7 23. Nxg7) ({Predecessor:} 20. Ne5 Qc8 21. Qf7 Bd6 22. Bf4 Qc7 23. Qe6 Bxe5 24. Bxe5 Qe7 25. Bxf6 gxf6 26. Qxg8+ Qe8 27. Qg7 Ra4 28. b3 Rb4 29. d5 Qe5 30. Rd1 Kc8 31. dxc6 {1-0 (31) Adly,A (2683)-Niemann,H (2592) Riga 2021}) 20... Qb7 $4 {[%emt 0:00:08][%mdl 8192]} (20... Qc8 $19 21. Qc4 b5) 21. Ne5 $18 {[%emt 0:00:11]} Be7 {[%emt 0:01:14]} 22. Nf7+ {[%emt 0:00:07] Weighted Error Value: White=0.30/Black=0.72} 1-0

[Event "27th Sharjah International Rapid Chess-c"]
[Site "Sharjah"]
[Date "2022.04.07"]
[Round "5.7"]
[White "Rayes, Abdul Kader"]
[Black "Tukhaev, Adam"]
[Result "0-1"]
[ECO "B31"]
[WhiteElo "2124"]
[BlackElo "2534"]
[Annotator "RC"]
[PlyCount "68"]
[EventDate "2022.04.07"]
[EventType "rapid"]
[EventCountry "UAE"]
[SourceTitle "playchess.com"]
[Source "ChessBase"]
[SourceQuality "1"]
[TimeControl "600+3"]

1. e4 {[%emt 0:00:02]} c5 {[%emt 0:00:01]} 2. Nf3 {[%emt 0:00:02]} Nc6 {[%emt 0:00:02]} 3. Bb5 {[%emt 0:00:06]} g6 {[%emt 0:00:02]} 4. O-O {[%emt 0:00:04]} Bg7 {[%emt 0:00:01]} 5. Re1 {[%emt 0:00:08]} e5 {[%emt 0:00:02]} 6. c3 {[%emt 0:00:38]} Nge7 {[%emt 0:00:04]} 7. Na3 {[%emt 0:01:09]} O-O {[%emt 0:00:25]} 8. Nc2 {[%emt 0:00:11]} Qb6 {[%emt 0:01:31]} 9. Bc4 {[%emt 0:00:12]} Na5 {[%emt 0:01:19]} 10. Bf1 {[%emt 0:01:28]} d6 {[%emt 0:00:09]} 11. d4 {[%emt 0:00:58]} exd4 {[%emt 0:00:24]} 12. cxd4 {[%emt 0:00:02]} Bg4 {[%emt 0:00:03]} 13. dxc5 {[%emt 0:00:04]} dxc5 {[%emt 0:00:09]} 14. Ne3 {[%emt 0:00:25]} Rad8 {[%emt 0:00:31]} 15. Qe2 {[%emt 0:01:13]} Be6 {[%emt 0:01:05]} 16. Ng5 {[%emt 0:00:21]} Bd7 {[%emt 0:00:30]} 17. Nc4 {[%emt 0:00:40]} Nxc4 {[%emt 0:00:06]} 18. Qxc4 {[%emt 0:00:01]} h6 {[%emt 0:00:05]} 19. Nf3 {[%emt 0:00:04]} Be6 {[%emt 0:00:03]} 20. Qc2 {[%emt 0:00:12]} Nc6 {[%emt 0:00:12]} 21. Be3 {[%emt 0:00:54]} Nd4 {[%emt 0:01:04]} 22. Nxd4 {[%emt 0:00:17]} cxd4 {[%emt 0:00:03]} 23. Bf4 {[%emt 0:00:06]} d3 {[%emt 0:01:01]} 24. Bxd3 {[%emt 0:00:07]} Qxb2 {[%emt 0:00:02]} 25. Rab1 {[%emt 0:00:15]} Qxc2 {[%emt 0:00:37]} 26. Bxc2 {[%emt 0:00:01]} b6 {[%emt 0:00:03]} 27. Bb3 {[%emt 0:00:39]} Rd3 {[%emt 0:00:01]} 28. Re3 {[%emt 0:00:18]} Rd4 {[%emt 0:00:01]} 29. Bg3 {[%emt 0:00:38]} Re8 {[%emt 0:00:16]} 30. Bc2 {[%emt 0:00:12]} Bxa2 {[%emt 0:00:21]} 31. Rbe1 {[%emt 0:00:04]} Be6 {[%emt 0:00:09]} 32. h4 {[%emt 0:00:02]} a5 {[%emt 0:00:13]} 33. Rb1 {[%emt 0:00:02]} Rc8 {[%emt 0:00:14]} 34. Ba4 {[%emt 0:00:05]} Rxa4 {[%emt 0:00:02]} 0-1